Cogmind - Beta 16.1 @@@ ROGUE MODE // 2026.02.15 @ 20:19:30 Player: Gingerlink Result: Destroyed by D-53 Grenadier with Mini Grenade Launcher Performance ------------- Evolutions (1) 500 Regions Visited (3) 600 Robots Destroyed (31) 155 Value Destroyed (835) 835 Prototype IDs (0) 0 Alien Tech Used (0) 0 Bonus (0) 0 TOTAL SCORE: 2090 Bonus ------- None Cogmind --------- Core Integrity 0/400 Matter 300/300 Energy 49/100 System Corruption 0% Temperature Cool (18) Movement Core (350) Ox6 Location -9/Mines Parts ------- > --- POWER (1) -------- (None) > --- PROPULSION (3) --- (None) > --- UTILITY (2) ------ Large Storage Unit > --- WEAPON (3) ------- (None) > --- INVENTORY (15) --- Deuterium Engine Deuterium Engine Aluminum Leg Aluminum Leg Large Storage Unit Target Analyzer Shield Generator Beam Rifle Peak State ------------ > --- POWER ------------ Deuterium Engine > --- PROPULSION ------- Aluminum Leg Aluminum Leg Aluminum Leg > --- UTILITY ---------- Large Storage Unit Shield Generator > --- WEAPON ----------- Plasma Cutter Plasma Cutter Plasma Cutter > --- INVENTORY -------- Deuterium Engine Deuterium Engine Aluminum Leg Aluminum Leg Aluminum Leg Large Storage Unit Target Analyzer Beam Rifle Beam Rifle Particle Gun Light Assault Rifle Heavy Assault Rifle Rocket Launcher [Rating: 17] Favorites ----------- Power Ion Engine Engine Ion Engine Propulsion Aluminum Leg Leg Aluminum Leg Utility Targeting Computer Device Shield Generator Storage Medium Storage Unit Processor Targeting Computer Weapon EM Pulse Gun Energy Gun EM Pulse Gun Ballistic Gun Light Assault Rifle Launcher Rocket Launcher Special Weapon Plasma Cutter Build | -11 -10 -9 -9 ------- Run | Yrd Mat Mat Min Slots Evolved 2 | . . 2 . Power . | . . . . Propulsion 1 | . . 1 . Utility . | . . . . Weapon 1 | . . 1 . Parts Attached 37 | 7 5 16 9 Power 6 | 1 . 3 2 Engine 6 | 1 . 3 2 Core . | . . . . Reactor . | . . . . Propulsion 12 | 2 1 5 4 Treads . | . . . . Leg 12 | 2 1 5 4 Wheel . | . . . . Hover . | . . . . Flight . | . . . . Utility 7 | 1 3 2 1 Device 3 | . 1 1 1 Storage 3 | 1 1 1 . Processor 1 | . 1 . . Hackware . | . . . . Protection . | . . . . Artifact . | . . . . Weapon 12 | 3 1 6 2 Energy Gun 4 | 1 1 2 . Energy Cannon . | . . . . Ballistic Gun 4 | 2 . . 2 Ballistic Cannon . | . . . . Launcher 1 | . . 1 . Special Weapon 3 | . . 3 . Impact Weapon . | . . . . Slashing Weapon . | . . . . Piercing Weapon . | . . . . Special Melee Weapon . | . . . . Unidentified Prototypes . | . . . . Parts Lost 16 | . . 1 15 Power 1 | . . . 1 Propulsion 7 | . . 1 6 Utility 1 | . . . 1 Weapon 7 | . . . 7 Highest Loss Streak 10 | . . 1 10 To Critical Strikes 1 | . . . 1 Average Backups 8 | 3 7 10 9 Power 1 | . 1 1 2 Propulsion 3 | 2 3 3 2 Utility 2 | . 1 2 3 Weapon 2 | . 1 2 2 Tool/Special . | . . . . Unused Backups 13 | . 5 4 4 Power 2 | . . 2 . Propulsion 6 | . 4 1 1 Utility 5 | . 1 1 3 Weapon . | . . . . Tool/Special . | . . . . Average Slot Usage (%) 98 | . 98 99 95 Engine 12 | . 14 11 11 Leg 31 | . 27 33 31 Device 3 | . 2 3 9 Storage 12 | . 14 11 11 Processor 7 | . 11 7 . Energy Gun 17 | . 22 15 9 Ballistic Gun 6 | . 5 3 17 Launcher 1 | . . 3 . Special Weapon 5 | . . 9 3 Peak Build Rating 17 | 6 8 17 17 Average Rating 11 | 4 7 13 15 On Entrance 7 | . 6 8 17 Avg Prop Armor Cover (%) . | . . . . Naked Turns . | . . . . Heaviest Build 40 | 13 20 36 40 Greatest Support 33 | 20 20 30 33 Greatest Overweight (x) 1 | . 1 1 1 Average Overweight (x) . | . . . 1 Largest Inventory Capacity 15 | 8 10 15 15 Average Capacity 10 | 7 8 11 15 Most Carried 15 | 7 8 15 15 Average Carried 8 | 3 7 10 9 Final Capacity 15 | 8 10 15 15 Final Carried 15 | 6 8 15 8 Class Distribution -------------------- 40% | Mutant 26% | Scavenger-Gunner 15% | Tank 9% | Gunner 8% | Scavenger-Tank Dominant Class ---------------- Mutant | -10/Materials Scavenger-Gunner | -9/Materials Scavenger-Tank | -9/Mines Resources | -11 -10 -9 -9 ----------- Run | Yrd Mat Mat Min Matter Collected 730 | 217 108 314 91 Remotely . | . . . . Salvage Created 1429 | . 641 697 91 Parts 66 | . 25 35 6 Haulers Intercepted . | . . . . Recyclers Shooed 3 | . . 3 . Parts Field Recycled . | . . . . Retrieved Matter . | . . . . Parts Self-Destructed . | . . . . Prevented . | . . . . Parts Restored . | . . . . Kills | -11 -10 -9 -9 ------- Run | Yrd Mat Mat Min Combat Hostiles Destroyed 21 | . 9 10 2 Guns 18 | . 8 9 1 AOE 2 | . 1 1 . Classes Destroyed 6 | . 4 1 1 Recycler 6 | . 3 3 . Watcher 4 | . 2 2 . Swarmer 3 | . 3 . . Grunt 13 | . 6 6 1 Duelist 1 | . . . 1 Sentry 4 | . . 4 . Best Kill Streak 7 | . 3 7 1 Combat Bots Only 4 | . 3 4 1 Max Kills in Single Turn 2 | . 2 2 1 Gunslinging 1 | . . 1 . Exploded 1 | . 1 1 . Melee . | . . . . Uniques/NPCs Destroyed . | . . . . Combat | -11 -10 -9 -9 -------- Run | Yrd Mat Mat Min Hostile Shots Fired 162 | . 37 38 87 Missed 44 | . 9 16 19 Hits 118 | . 28 22 68 Melee 13 | . . . 13 Projectile 105 | . 28 22 55 AOE 22 | . . . 22 Critical Strikes 6 | . . 2 4 Part Disruptions 1 | . . . 1 Damage Taken 2260 | . 348 321 1591 Core 490 | . 42 38 410 Absorbed by Shields 121 | . . . 121 Core Remaining (%) 91 | 100 83 . . Volleys Fired 67 | . 26 28 13 Largest 3 | . 2 3 3 Hottest 154 | . 105 154 79 Shots Fired 153 | . 52 73 28 Gun 122 | . 52 53 17 Cannon . | . . . . Launcher 11 | . . 11 . Special 20 | . . 9 11 Kinetic 28 | . 10 11 7 Thermal 79 | . 16 42 21 Explosive 11 | . . 11 . Electromagnetic 35 | . 26 9 . Robot Hit Streak 9 | . 8 9 7 Robot Miss Streak 4 | . 3 4 3 Penetration Max . | . . . . Secondary Targets 3 | . 1 2 . Max Gunslinging Chain 1 | . 1 1 . Shots Hit Robots 88 | . 37 32 19 Core Hits 51 | . 21 25 5 Critical Kills 1 | . 1 . . Critical Parts Destroyed . | . . . . Critical Strikes 7 | . 2 2 3 Burn 4 | . . 1 3 Destroy 1 | . 1 . . Corrupt 1 | . 1 . . Sever 1 | . . 1 . Melee Attacks . | . . . . Impact . | . . . . Slashing . | . . . . Piercing . | . . . . Sneak Attacks . | . . . . Combat Hostiles . | . . . . Follow-up Attacks . | . . . . Damage Inflicted 1435 | . 532 645 258 Guns 1016 | . 484 354 178 Cannons . | . . . . Explosions 297 | . 42 255 . Melee . | . . . . Ramming 19 | . 6 13 . Kinetic 137 | . 55 33 49 Thermal 751 | . 248 294 209 Explosive 255 | . . 255 . Electromagnetic 273 | . 223 50 . Impact . | . . . . Slashing . | . . . . Piercing . | . . . . Highest Corruption . | . . . . Average Corruption . | . . . . Corruption Purged . | . . . . Corruption Blocked . | . . . . Overload Shots . | . . . . Overflow Damage 12 | . . 12 . Projectiles . | . . . . Explosions 12 | . . 12 . Melee . | . . . . Knockbacks . | . . . . Impact . | . . . . Kinetic . | . . . . Secondary . | . . . . Self-Inflicted Damage 35 | . 35 . . Shots 1 | . 1 . . Rammed . | . . . . Targets Rammed 5 | . 2 3 . Kicked 5 | . 2 3 . Crushed . | . . . . Highest Temperature 261 | . 261 210 64 Average Temperature 66 | . 75 69 22 Received Heat Transfer 383 | . 135 132 116 Siege Activations . | . . . . Martial Activations . | . . . . Shielding Activations . | . . . . Robots Disrupted . | . . . . Combat Hostiles . | . . . . Robots Corrupted . | . . . . Combat Hostiles . | . . . . Parts Fried 1 | . 1 . . Impact Corruptions . | . . . . Robots Melted 1 | . . . 1 Combat Hostiles 1 | . . . 1 Parts Melted 6 | . 2 4 . Heat Transferred 2209 | . 581 814 814 Parts Sabotaged . | . . . . Parts Stolen . | . . . . Parts Stripped . | . . . . Power Chain Reactions 1 | . 1 . . Alert | -11 -10 -9 -9 ------- Run | Yrd Mat Mat Min Maximum Alert Level . | . . . . Low Security (%) 100 | 100 100 100 100 Level 1 . | . . . . Level 2 . | . . . . Level 3 . | . . . . Level 4 . | . . . . Level 5 . | . . . . High Security . | . . . . Max Security . | . . . . Peak Influence 191 | . 99 191 30 Initial 23 | . . 23 . Average 45 | . 29 69 3 Influence Increases 708 | . 288 370 50 Destroy 0b10 Robot/C 420 | . 180 200 40 Destroy 0b10 Robot/NC 50 | . 25 25 . Destroy Leader 118 | . 34 74 10 Disable Machine 15 | . . 15 . Destroy Structure 60 | . 4 56 . Lose Combat Pursuer 45 | . 45 . . Influence Decreases 708 | . 232 426 50 Entered New Map 33 | . . 33 . Time Decay 655 | . 232 383 40 Lost Part 20 | . . 10 10 Squads Dispatched 5 | . . 5 . Investigation . | . . . . Extermination . | . . . . Reinforcement 5 | . . 5 . Assault . | . . . . Garrison . | . . . . Intercept . | . . . . Searches Triggered . | . . . . Construction Impeded 1 | . . 1 . Haulers Reinforced . | . . . . Active Scanning Responses . | . . . . Cargo Convoy Interrupts . | . . . . Stealth | -11 -10 -9 -9 --------- Run | Yrd Mat Mat Min Distress Signals 3 | . 1 2 . Communications Jammed . | . . . . Distress Signals . | . . . . Times Spotted 55 | . 14 18 23 Peak Tracking Total 21 | . 5 6 21 Tactical Retreats 2 | . 2 . . Traps | -11 -10 -9 -9 ------- Run | Yrd Mat Mat Min Traps Triggered . | . . . . Indirectly . | . . . . Trap Hack Attempts . | . . . . Triggered . | . . . . Disarmed . | . . . . Reprogrammed . | . . . . Reused . | . . . . Traps Extracted . | . . . . Installed . | . . . . Triggered . | . . . . Machines | -11 -10 -9 -9 ---------- Run | Yrd Mat Mat Min Machines Disabled 1 | . . 1 . Max in Single Turn 1 | . . 1 . Machines Repaired . | . . . . Machines Dismantled . | . . . . Machines Sabotaged . | . . . . Overloaded Fab Kills . | . . . . Hacking | -11 -10 -9 -9 --------- Run | Yrd Mat Mat Min Machines Accessed . | . . . . Terminals . | . . . . Fabricators . | . . . . Repair Stations . | . . . . Recycling Units . | . . . . Scanalyzers . | . . . . Garrison Access . | . . . . Total Hacks . | . . . . Successful . | . . . . Failed . | . . . . Catastrophic . | . . . . Database Lockouts . | . . . . Manual . | . . . . Terminals . | . . . . Fabricators . | . . . . Repair Stations . | . . . . Recycling Units . | . . . . Scanalyzers . | . . . . Garrison Access . | . . . . Terminal Hacks . | . . . . Fabricator Hacks . | . . . . Repair Station Hacks . | . . . . Recycling Unit Hacks . | . . . . Scanalyzer . | . . . . Garrison Access Hacks . | . . . . Unauthorized Hacks . | . . . . Terminals . | . . . . Fabricators . | . . . . Repair Stations . | . . . . Recycling Units . | . . . . Scanalyzers . | . . . . Garrison Access . | . . . . Data Cores Recovered . | . . . . Used . | . . . . Hacking Detections . | . . . . Full Trace Events . | . . . . Feedback Events . | . . . . Feedback Blocked . | . . . . Robot Schematics Acquired . | . . . . Robots Built . | . . . . Authchips . | . . . . Time . | . . . . Total Robot Build Rating . | . . . . Part Schematics Acquired . | . . . . Parts Built . | . . . . Authchips . | . . . . Time . | . . . . Total Part Build Rating . | . . . . Part Studies Acquired . | . . . . Parts Repaired . | . . . . Time . | . . . . Parts Recycled . | . . . . Recycled Matter . | . . . . Retrieved Matter . | . . . . Retrieved Components . | . . . . Parts Scanalyzed . | . . . . Part Schematics Acquired . | . . . . Parts Damaged . | . . . . Bothacking | -11 -10 -9 -9 ------------ Run | Yrd Mat Mat Min Used RIF Installer . | . . . . Robots Hacked . | . . . . Non-combat . | . . . . Combat . | . . . . Robot Hacks Applied . | . . . . Relay Couplers Released . | . . . . Fabnet Peak Effective % . | . . . . Robots Rewired . | . . . . Allies Hacked . | . . . . Hacks Repelled . | . . . . Allies | -11 -10 -9 -9 -------- Run | Yrd Mat Mat Min Total Allies . | . . . . Largest Group . | . . . . Highest-Rated Group . | . . . . Highest-Rated Ally . | . . . . Total Orders . | . . . . Ally Attacks . | . . . . Total Damage . | . . . . Kills . | . . . . Allies Corrupted . | . . . . Allies Melted . | . . . . Intel | -11 -10 -9 -9 ------- Run | Yrd Mat Mat Min Active Infowar (turns) 127 | . 127 . . Structural 127 | . 127 . . Robot Analysis Total . | . . . . Derelict Logs Recovered . | . . . . Drone Launches . | . . . . Drone Recoveries . | . . . . Exploration | -11 -10 -9 -9 ------------- Run | Yrd Mat Mat Min Turns Passed 2375 | 97 802 1192 284 Spaces Moved 1402 | 75 501 718 108 Core 12 | 12 . . . Treads . | . . . . Legs 1390 | 63 501 718 108 Wheels . | . . . . Hover . | . . . . Flight . | . . . . Fastest Speed 50 | 50 120 120 190 Average Speed 133 | 108 120 136 190 Slowest Speed 190 | 120 190 190 190 Overloaded Moves . | . . . . Propulsion Burnouts . | . . . . Robots Hopped . | . . . . Potential Cave-ins 5 | . . 5 . Cave-ins Triggered . | . . . . Exploration Rate (%) 28 | 3 41 47 22 Regions Visited 3 Branch Regions 1 Pre-discovered Areas . | . . . . Known Exits Taken . | . . . . Unknown Exits Taken 3 | 1 1 1 . Scrap Searched . | . . . . Spaces Dug 20 | . . 20 . Terrain Destroyed 101 | . 3 98 . Melee . | . . . . Projectile . | . . . . AOE 101 | . 3 98 . Terrain Rammed . | . . . . Walls Destroyed . | . . . . Machines Disabled . | . . . . Actions | -11 -10 -9 -9 --------- Run | Yrd Mat Mat Min Total 1765 | 88 653 874 150 Wait 183 | . 101 70 12 Move 1399 | 74 500 717 108 Hop . | . . . . Pick Up 28 | 6 8 12 2 Fast Attach 21 | 6 3 11 1 Attach 18 | 1 1 5 11 Detach 15 | 1 2 10 2 Swap 5 | . 1 3 1 Drop 24 | . 9 15 . Fire 67 | . 26 28 13 Melee . | . . . . Ram . | . . . . Kick 5 | . 2 3 . Crush . | . . . . Escape Stasis . | . . . . Rewire . | . . . . Trap . | . . . . Miscellaneous . | . . . . Route ------- -11/Scrapyard -10/Materials -9/Materials -9/Mines History --------- Turn | Location | Event 9 | -11/Scrapyard | Discovered new exit (range 14) 98 | -11/Scrapyard | Entered Materials 317 | -10/Materials | Build established: Mutant 648 | -10/Materials | Discovered new exit (range 16) 900 | -10/Materials | Entered another Materials area 900 | -9/Materials | Evolved 2 slots: Propulsion x1, Weapon x1 1417 | -9/Materials | Build established: Scavenger-Gunner 1633 | -9/Materials | Discovered new exit (range 7) 2042 | -9/Materials | Build established: Tank 2092 | -9/Materials | Entered Mines 2177 | -9/Mines | Lost 5 parts (2n3w) 2318 | -9/Mines | Assembled infested the area 2364 | -9/Mines | Core integrity fell below 50% 2372 | -9/Mines | Core integrity fell below 20% 2376 | -9/Mines | Destroyed by D-53 Grenadier with Mini Grenade Launcher Last Messages --------------- as-85731 destroyed. as-31785 destroyed. as-57959 destroyed. as-88877 destroyed. K-01 Serf collects debris. K-01 Serf destroyed. The unstable cave ceiling collapses. Hvy. Assault Rifle destroyed. The unstable cave ceiling collapses. Aluminum Leg destroyed. Rocket Launcher destroyed. The unstable cave ceiling collapses. Aluminum Leg destroyed. Imp. Aluminum Leg destroyed. The unstable cave ceiling collapses. Shield Generator destroyed. The unstable cave ceiling collapses. Hvy. Assault Rifle destroyed. Beam Rifle destroyed. Deuterium Engine destroyed. Map ----- +----------------------------------------------------+ | ?????????????????????????????????????????????????? | | ?????????????????????????????????????????????????? | | ?????????????????????????????????????????????????? | | ?????????????????????????????????????????????????? | | ?????????????????????????????????????????????????? | | ????????????????#????????????????????????????????? | | ??????????????## ????????????????????????????????? | | ??????????##### ????????????????????????????????? | | ?????????## ????????????????????????????????? | | ?????????# ????????????????????????????????? | | ????????## ????????????????????????????????? | | ????????# #????????????????????????????????? | | ?????????? #????####????????????????????????? | | ???????????? ##??## ##???????????????????????? | | ?????????????# #### ##???#??????????????????? | | ??????????????# ### #??????????????????? | | ?????????????## #??????????????????? | | ?????????##### #??????????????????? | | ?????????# ## #######????????????????? | | ?????????# ### #### ##???????????????? | | ????###??# ######## ###?????????????? | | ### #?# ##???## % #?????????????? | | ## ##??# ###???????????? | | * #??# = # # #???????? | | ??# # = [ ##?## # #????????? | | ??# ###### ! ##?### @ d #???????? | | ??# #????## !! ##??# d #?????? | | ### #?????## #??# # < #?????? | | ## #??????# #??## ????? | | ## ##?????# ##???## # ???? | | ## ##????# ####?????######### # # ????? | | ###### #?????????????????## ?#?????? | | #???????????????????? # ???????? | | #########?????????????????????### ##????????? | | ###?????????????????????????????????#?????????? | | ##?????????????????????????????????????????????? | | ###??????????????????????????????????????????????? | | ?????????????????????????????????????????????????? | | ?????????????????????????????????????????????????? | | ?????????????????????????????????????????????????? | | | | | | | | | | | | | | | | | | | | | +----------------------------------------------------+ Best States ------------- Heat Dissipation 28 Energy Generation 14 Energy Capacity 275 Matter Stores 300 Matter Capacity 300 Sight Range 16 Terrain Scan Density 10 Evasion (%) 55 Targeting Accuracy 5 Item Schematics ----------------- None Robot Schematics ------------------ None Fabricated ------------ Nothing Repaired ---------- Nothing Studied --------- None Alien Tech Used ----------------- None Achievements -------------- Hunted Challenges ------------ None Game ------ Seed FlightBiometalThruster Manual? 0 Play Time 00:41:23 Cumulative 10.7 hours Start 2026.02.15 @ 08:57:03 End 2026.02.15 @ 20:19:30 Sessions 3 Manual Loads 0 Difficulty Rogue Special Mode None Game No. 20 Rogue 20 Adventurer 0 Explorer 0 Win Type - Total 0 Types 0/0/0/0/0/0/0/0/0/0 Lore% 1 Gallery% 13 Achievement% 7 Wizard Run 0 Options --------- Layout 0 ASCII 0 Keyboard 1 Movement Vi Keybinds 0 Fullscreen 2 Font 24/Smallcaps Map View 38x25 Zoom Use 57% Tactical HUD 0 Map Filters NONE Filters NONE Steam 1 RUN: 766d07de-a224-4618-abc0-509bd548fd15